Cogmind - Beta 13 @@@ ROGUE MODE // 2024.04.16 @ 23:37:57 Player: Zaros426 Result: Destroyed by G-67 Veteran with Plasma Rifle Performance ------------- Evolutions (1) 500 Regions Visited (5) 1000 Robots Destroyed (32) 160 Value Destroyed (529) 529 Prototype IDs (4) 80 Alien Tech Used (0) 0 Bonus (-736) -736 TOTAL SCORE: 1533 Bonus ------- High Alert Combat Kills 11 Met Imprinter 300 Was Imprinted 300 Friendly Fire -1347 Cogmind --------- Core Integrity 0/400 Matter 271/300 Energy 89/100 System Corruption 8% Temperature Cool (0) Movement Core (200) Ox3 Location -6/Proximity Caves Parts ------- > --- POWER (1) -------- (None) > --- PROPULSION (3) --- (None) > --- UTILITY (3) ------ Medium Armor Plating > --- WEAPON (2) ------- Axe > --- INVENTORY (5) ---- Storm Laser Peak State ------------ > --- POWER ------------ Deuterium Engine > --- PROPULSION ------- Aluminum Leg Improved Aluminum Leg > --- UTILITY ---------- Signal Interpreter Medium Armor Plating Hardened Light Armor Plating > --- WEAPON ----------- Makeshift Shrapnel Gun Axe > --- INVENTORY -------- Seismic Detector Light Armor Plating Medium Armor Plating Medium Armor Plating Rocket Launcher [Rating: 18] Favorites ----------- Power Deuterium Engine Engine Deuterium Engine Propulsion Aluminum Leg Leg Aluminum Leg Wheel Wheel Hover Unit Hover Unit Flight Unit Flight Unit Utility Seismic Detector Device Seismic Detector Storage Small Storage Unit Processor Signal Interpreter Protection Medium Armor Plating Weapon Axe Energy Gun Improved EM Shotgun Ballistic Gun Makeshift Shrapnel Gun Launcher Rocket Launcher Special Weapon Enhanced Flamer Slashing Weapon Axe Build | -11 -10 -9 -9 -7 -6 ------- Run | Yrd Mat Mat Min Zio Pro Slots Evolved 2 | . . 2 . . . Power . | . . . . . . Propulsion 1 | . . 1 . . . Utility 1 | . . 1 . . . Weapon . | . . . . . . Parts Attached 42 | 8 5 16 . 12 1 Power 3 | 1 . 2 . . . Engine 3 | 1 . 2 . . . Core . | . . . . . . Reactor . | . . . . . . Propulsion 10 | 2 3 5 . . . Treads . | . . . . . . Leg 2 | . . 2 . . . Wheel 3 | 2 1 . . . . Hover 3 | . 2 1 . . . Flight 2 | . . 2 . . . Utility 14 | 3 1 5 . 4 1 Device 5 | 2 . 2 . 1 . Storage 1 | 1 . . . . . Processor 1 | . 1 . . . . Hackware . | . . . . . . Protection 7 | . . 3 . 3 1 Artifact . | . . . . . . Weapon 15 | 2 1 4 . 8 . Energy Gun 2 | 1 . 1 . . . Energy Cannon . | . . . . . . Ballistic Gun 5 | 1 1 1 . 2 . Ballistic Cannon . | . . . . . . Launcher 4 | . . 2 . 2 . Special Weapon 1 | . . . . 1 . Impact Weapon . | . . . . . . Slashing Weapon 3 | . . . . 3 . Piercing Weapon . | . . . . . . Special Melee Weapon . | . . . . . . Unidentified Prototypes 1 | . . 1 . . . Parts Lost 13 | . 1 5 . 6 1 Power 1 | . . . . 1 . Propulsion 5 | . 1 3 . 1 . Utility 5 | . . 2 . 2 1 Weapon 2 | . . . . 2 . Highest Loss Streak 6 | . 1 3 . 6 1 To Critical Strikes . | . . . . . . Average Slot Usage (%) 72 | . 97 70 77 73 42 Engine 8 | . 14 8 11 8 . Leg 15 | . . 14 22 19 7 Wheel 3 | . 24 . . . . Device 9 | . 13 9 11 9 7 Storage 1 | . 14 . . . . Processor 7 | . . 11 11 8 . Protection 9 | . . 5 11 12 15 Energy Gun 4 | . 8 9 11 2 . Ballistic Gun 5 | . 17 1 . 6 . Slashing Weapon 5 | . . . . 7 11 Naked Turns . | . . . . . . Heaviest Build 27 | 13 13 20 20 27 16 Greatest Support 23 | 20 20 23 23 23 10 Greatest Overweight (x) 3 | 2 1 1 . 1 3 Average Overweight (x) . | . . . . . . Largest Inventory Capacity 8 | 8 8 8 5 5 5 Average Capacity 5 | 7 8 5 5 5 5 Most Carried 8 | 1 8 6 5 5 5 Average Carried 4 | . 3 4 5 4 4 Final Capacity 8 | 8 8 5 5 5 5 Final Carried 7 | 1 7 5 5 5 4 Class Distribution -------------------- 57% | Scavenger-Mutant 42% | Mutant Dominant Class ---------------- Mutant | -10/Materials Scavenger-Mutant | -9/Materials Scavenger-Mutant | -9/Mines Scavenger-Mutant | -7/Zion Mutant | -6/Proximity Caves Resources | -11 -10 -9 -9 -7 -6 ----------- Run | Yrd Mat Mat Min Zio Pro Matter Collected 924 | 230 62 397 . 235 . Remotely . | . . . . . . Salvage Created 816 | 38 148 459 . 171 . Parts 73 | 7 23 36 . 7 . Haulers Intercepted 1 | . . 1 . . . Recyclers Shooed 2 | 1 . 1 . . . Parts Field Recycled . | . . . . . . Retrieved Matter . | . . . . . . Parts Self-Destructed 5 | . . . . 5 . Prevented . | . . . . . . Kills | -11 -10 -9 -9 -7 -6 ------- Run | Yrd Mat Mat Min Zio Pro Combat Hostiles Destroyed 17 | . 6 11 . . . Guns 10 | . 6 4 . . . AOE 7 | . . 7 . . . Classes Destroyed 9 | 1 3 4 . 1 . Worker 1 | . 1 . . . . Tunneler 3 | 2 . 1 . . . Hauler 1 | . . 1 . . . Watcher 4 | . 2 2 . . . Swarmer 9 | . 6 3 . . . Grunt 5 | . . 3 . 2 . Duelist 2 | . . 2 . . . Sentry 3 | . . 3 . . . Mutant 4 | . . . . 4 . Best Kill Streak 7 | 2 6 7 . . . Combat Bots Only 6 | . 5 6 . . . Max Kills in Single Turn 3 | 1 1 2 . 3 . Gunslinging . | . . . . . . Exploded 2 | . . 2 . . . Melee . | . . . . . . Uniques/NPCs Destroyed . | . . . . . . Combat | -11 -10 -9 -9 -7 -6 -------- Run | Yrd Mat Mat Min Zio Pro Hostile Shots Fired 114 | . 32 66 . . 16 Missed 33 | . 9 17 . . 7 Damage Taken 1749 | . 211 750 . 620 168 Core 433 | . 17 233 . 60 123 Absorbed by Shields . | . . . . . . Core Remaining (%) 96 | 100 93 . . . . Volleys Fired 76 | 5 25 33 . 13 . Largest 2 | 2 2 1 . 1 . Hottest 70 | 70 70 45 . 45 . Shots Fired 106 | 10 50 33 . 13 . Gun 89 | 10 50 27 . 2 . Cannon . | . . . . . . Launcher 17 | . . 6 . 11 . Special . | . . . . . . Kinetic 56 | 5 45 6 . . . Thermal 10 | 5 5 . . . . Explosive 17 | . . 6 . 11 . Electromagnetic 23 | . . 21 . 2 . Robot Hit Streak 12 | 5 4 12 . . . Robot Miss Streak 3 | 2 3 2 . . . Penetration Max . | . . . . . . Secondary Targets . | . . . . . . Shots Hit Robots 60 | 6 25 29 . . . Core Hits 59 | 2 10 25 . 22 . Critical Kills . | . . . . . . Critical Parts Destroyed . | . . . . . . Critical Strikes 1 | 1 . . . . . Burn 1 | 1 . . . . . Melee Attacks 26 | . . . . 26 . Impact . | . . . . . . Slashing 26 | . . . . 26 . Piercing . | . . . . . . Sneak Attacks . | . . . . . . Combat Hostiles . | . . . . . . Follow-up Attacks . | . . . . . . Damage Inflicted 2174 | 90 321 1016 . 747 . Guns 805 | 90 321 394 . . . Cannons . | . . . . . . Explosions 1369 | . . 622 . 747 . Melee . | . . . . . . Ramming . | . . . . . . Kinetic 409 | 64 284 61 . . . Thermal 211 | 26 37 148 . . . Explosive 1221 | . . 474 . 747 . Electromagnetic 333 | . . 333 . . . Impact . | . . . . . . Slashing . | . . . . . . Piercing . | . . . . . . Highest Corruption 8 | . 1 . . 8 8 Average Corruption 6 | . 1 . . 8 8 Corruption Purged . | . . . . . . Corruption Blocked . | . . . . . . Effects 29 | . 2 . . 13 14 Message Errors 6 | . . . . 2 4 Matter Fused 7 | . . . . 5 2 Heat Flow Errors 2 | . . . . . 2 Energy Discharges 4 | . 1 . . 2 1 Parts Fused 1 | . . . . 1 . Data Loss (minor) 6 | . 1 . . 2 3 Data Loss (major) 2 | . . . . 1 1 Alerts 1 | . . . . . 1 Overload Shots . | . . . . . . Overflow Damage 23 | . . . . 23 . Projectiles . | . . . . . . Explosions 23 | . . . . 23 . Melee . | . . . . . . Knockbacks . | . . . . . . Impact . | . . . . . . Kinetic . | . . . . . . Secondary . | . . . . . . Self-Inflicted Damage 567 | . . 130 . 437 . Shots 16 | . . 5 . 11 . Rammed . | . . . . . . Targets Rammed . | . . . . . . Kicked . | . . . . . . Crushed . | . . . . . . Highest Temperature 126 | 45 18 69 . 12 126 Average Temperature 23 | 22 9 22 . 5 62 Received Heat Transfer 192 | . 6 144 . . 42 Siege Activations . | . . . . . . Robots Corrupted . | . . . . . . Combat Hostiles . | . . . . . . Parts Fried 1 | . . 1 . . . Impact Corruptions . | . . . . . . Robots Melted . | . . . . . . Combat Hostiles . | . . . . . . Parts Melted . | . . . . . . Heat Transferred 359 | 148 111 100 . . . Parts Sabotaged . | . . . . . . Parts Stolen . | . . . . . . Parts Stripped . | . . . . . . Power Chain Reactions 3 | . . 3 . . . Alert | -11 -10 -9 -9 -7 -6 ------- Run | Yrd Mat Mat Min Zio Pro Peak Influence 462 | 10 390 462 102 . . Initial 102 | . 6 89 102 . . Average 191 | 2 155 270 102 . . Maximum Alert Level 2 | . 1 2 . . . Low Security (%) 50 | 100 71 12 100 . . Level 1 47 | . 28 83 . . . Level 2 1 | . . 4 . . . Level 3 . | . . . . . . Level 4 . | . . . . . . Level 5 . | . . . . . . High Security . | . . . . . . Max Security . | . . . . . . Squads Dispatched 4 | . 2 1 . . 1 Investigation 2 | . 1 1 . . . Extermination . | . . . . . . Reinforcement 1 | . 1 . . . . Assault 1 | . . . . . 1 Garrison . | . . . . . . Intercept . | . . . . . . Searches Triggered . | . . . . . . Construction Impeded . | . . . . . . Haulers Reinforced . | . . . . . . Active Scanning Responses . | . . . . . . Cargo Convoy Interrupts . | . . . . . . Stealth | -11 -10 -9 -9 -7 -6 --------- Run | Yrd Mat Mat Min Zio Pro Distress Signals 6 | . 4 2 . . . Communications Jammed . | . . . . . . Distress Signals . | . . . . . . Times Spotted 46 | . 19 13 . . 14 Peak Tracking Total 10 | . 7 7 . . 10 Tactical Retreats 9 | . 5 . . . 4 Traps | -11 -10 -9 -9 -7 -6 ------- Run | Yrd Mat Mat Min Zio Pro Traps Triggered 1 | . 1 . . . . Indirectly . | . . . . . . Trap Hack Attempts . | . . . . . . Triggered . | . . . . . . Disarmed . | . . . . . . Reprogrammed . | . . . . . . Reused . | . . . . . . Traps Extracted . | . . . . . . Installed . | . . . . . . Triggered . | . . . . . . Machines | -11 -10 -9 -9 -7 -6 ---------- Run | Yrd Mat Mat Min Zio Pro Machines Disabled 2 | . . 2 . . . Max in Single Turn 1 | . . 1 . . . Machines Repaired . | . . . . . . Machines Dismantled . | . . . . . . Machines Sabotaged . | . . . . . . Overloaded Fab Kills . | . . . . . . Hacking | -11 -10 -9 -9 -7 -6 --------- Run | Yrd Mat Mat Min Zio Pro Machines Accessed 10 | . 6 4 . . . Terminals 10 | . 6 4 . . . Fabricators . | . . . . . . Repair Stations . | . . . . . . Recycling Units . | . . . . . . Scanalyzers . | . . . . . . Garrison Access . | . . . . . . Total Hacks 20 | . 11 9 . . . Successful 9 | . 6 3 . . . Failed 11 | . 5 6 . . . Catastrophic 4 | . 1 3 . . . Database Lockouts . | . . . . . . Manual 1 | . 1 . . . . Terminals 20 | . 11 9 . . . Fabricators . | . . . . . . Repair Stations . | . . . . . . Recycling Units . | . . . . . . Scanalyzers . | . . . . . . Garrison Access . | . . . . . . Terminal Hacks 9 | . 6 3 . . . Prototype ID Bank 2 | . 1 1 . . . Emergency Access Points 1 | . 1 . . . . Alert Level 1 | . . 1 . . . Locate Traps 2 | . 2 . . . . Reinforcement Status 1 | . 1 . . . . Hauler Manifests 1 | . . 1 . . . Registered Prototypes 1 | . 1 . . . . Fabricator Hacks . | . . . . . . Repair Station Hacks . | . . . . . . Recycling Unit Hacks . | . . . . . . Scanalyzer . | . . . . . . Garrison Access Hacks . | . . . . . . Unauthorized Hacks . | . . . . . . Terminals . | . . . . . . Fabricators . | . . . . . . Repair Stations . | . . . . . . Recycling Units . | . . . . . . Scanalyzers . | . . . . . . Garrison Access . | . . . . . . Data Cores Recovered . | . . . . . . Used . | . . . . . . Hacking Detections 7 | . 4 3 . . . Full Trace Events 3 | . 1 2 . . . Feedback Events . | . . . . . . Feedback Blocked . | . . . . . . Robot Schematics Acquired 3 | . . . . 3 . Robots Built . | . . . . . . Authchips . | . . . . . . Time . | . . . . . . Total Robot Build Rating . | . . . . . . Part Schematics Acquired 15 | . . . . 15 . Parts Built . | . . . . . . Authchips . | . . . . . . Time . | . . . . . . Total Part Build Rating . | . . . . . . Parts Repaired . | . . . . . . Time . | . . . . . . Parts Recycled . | . . . . . . Recycled Matter . | . . . . . . Retrieved Matter . | . . . . . . Retrieved Components . | . . . . . . Parts Scanalyzed . | . . . . . . Part Schematics Acquired . | . . . . . . Parts Damaged . | . . . . . . Bothacking | -11 -10 -9 -9 -7 -6 ------------ Run | Yrd Mat Mat Min Zio Pro Used RIF Installer . | . . . . . . Robots Hacked . | . . . . . . Non-combat . | . . . . . . Combat . | . . . . . . Robot Hacks Applied . | . . . . . . Relay Couplers Released . | . . . . . . Fabnet Peak Effective % . | . . . . . . Robots Rewired . | . . . . . . Allies Hacked . | . . . . . . Hacks Repelled . | . . . . . . Allies | -11 -10 -9 -9 -7 -6 -------- Run | Yrd Mat Mat Min Zio Pro Total Allies 7 | . . . 3 4 . Largest Group 7 | . . . 3 7 . Highest-Rated Group 195 | . . . 40 195 . Highest-Rated Ally 41 | . . . 16 41 . Total Orders . | . . . . . . Ally Attacks . | . . . . . . Total Damage . | . . . . . . Kills . | . . . . . . Allies Corrupted . | . . . . . . Allies Melted . | . . . . . . Intel | -11 -10 -9 -9 -7 -6 ------- Run | Yrd Mat Mat Min Zio Pro Robot Analysis Total . | . . . . . . Derelict Logs Recovered 2 | . . . . 2 . Drone Launches . | . . . . . . Drone Recoveries . | . . . . . . Exploration | -11 -10 -9 -9 -7 -6 ------------- Run | Yrd Mat Mat Min Zio Pro Turns Passed 3778 | 75 473 645 225 1941 419 Spaces Moved 3125 | 49 485 550 188 1451 402 Core 257 | 8 . . . . 249 Treads . | . . . . . . Legs 2091 | . . 299 188 1451 153 Wheels 436 | 41 395 . . . . Hover 159 | . 90 69 . . . Flight 182 | . . 182 . . . Fastest Speed 47 | 50 56 47 120 120 50 Average Speed 108 | 90 75 94 120 125 103 Slowest Speed 200 | 150 95 190 120 190 200 Overloaded Moves . | . . . . . . Propulsion Burnouts . | . . . . . . Robots Hopped . | . . . . . . Cave-ins Triggered 1 | . . . . 1 . Exploration Rate (%) 46 | 4 77 39 40 91 28 Regions Visited 5 Branch Regions 3 Pre-discovered Areas 4 | . . . . 4 . Known Exits Taken 4 | . 1 1 1 1 . Unknown Exits Taken 1 | 1 . . . . . Scrap Searched 3 | . . . . 3 . Spaces Dug 90 | . . 15 . 75 . Terrain Destroyed 125 | . . 41 . 84 . Melee 4 | . . . . 4 . Projectile . | . . . . . . AOE 121 | . . 41 . 80 . Terrain Rammed . | . . . . . . Walls Destroyed . | . . . . . . Machines Disabled . | . . . . . . Actions | -11 -10 -9 -9 -7 -6 --------- Run | Yrd Mat Mat Min Zio Pro Total 3357 | 65 539 652 187 1508 406 Wait 36 | 3 14 19 . . . Move 3120 | 48 484 549 187 1450 402 Hop . | . . . . . . Pick Up 24 | 1 8 13 . 2 . Fast Attach 19 | 7 1 7 . 4 . Attach 12 | . . 7 . 4 1 Detach 5 | . . 5 . . . Swap 11 | 1 4 2 . 4 . Drop 28 | . 3 17 . 5 3 Fire 76 | 5 25 33 . 13 . Melee 26 | . . . . 26 . Ram . | . . . . . . Kick . | . . . . . . Crush . | . . . . . . Escape Stasis . | . . . . . . Rewire . | . . . . . . Trap . | . . . . . . Miscellaneous . | . . . . . . Route ------- -11/Scrapyard -10/Materials (discovered 4 exits: *Mat x3 / [*Min]) -9/Materials (discovered 2 exits: *Mat / *Min) -9/Mines -7/Zion (discovered 2 exits: Dee / *Pro) -6/Proximity Caves History --------- Turn | Location | Event 6 | -11/Scrapyard | Discovered new exit (range 15) 76 | -11/Scrapyard | Entered Materials 227 | -10/Materials | Discovered new exit (range 14) 302 | -10/Materials | Build established: Mutant 329 | -10/Materials | Discovered new exit (range 9) 348 | -10/Materials | Discovered new exit (range 3) 468 | -10/Materials | Discovered new exit (range 15) 534 | -10/Materials | Identified exit to Materials 549 | -10/Materials | Entered another Materials area 549 | -9/Materials | Evolved 2 slots: Propulsion x1, Utility x1 674 | -9/Materials | Lost 3 parts (1n2u) 724 | -9/Materials | Discovered new exit (range 16) 794 | -9/Materials | Core integrity fell below 50% 888 | -9/Materials | Discovered new exit (range 9) 990 | -9/Materials | Identified exit to Mines 1086 | -9/Materials | Identified exit to Materials 1162 | -9/Materials | Build established: Scavenger-Mutant 1194 | -9/Materials | Entered Mines 1277 | -9/Mines | Assisted by bots powering up and referring to "LRC-V3" 1404 | -9/Mines | A Derelict revealed a hidden shortcut to a safe place 1408 | -9/Mines | Identified exit to Zion 1419 | -9/Mines | Entered Zion 1419 | -7/Zion | Accompanied by 3 allies 1517 | -7/Zion | Discovered new exit (range 16) 1555 | -7/Zion | Identified exit to Proximity Caves 1662 | -7/Zion | Learned location of Quarantine (-2) 1957 | -7/Zion | Imprinted 1959 | -7/Zion | Declared Zion's savior 2085 | -7/Zion | Identified exit to Deep Caves 2113 | -7/Zion | Learned location of Data Miner (-6) 2126 | -7/Zion | Learned location of Storage (-7) 2324 | -7/Zion | Learned location of Warlord (-4) 2448 | -7/Zion | Learned Factory terminal intel 2893 | -7/Zion | Crushed by falling debris 2900 | -7/Zion | Warned about damaging Zion machinery 2948 | -7/Zion | Murdered 6 allies 2953 | -7/Zion | Lost 6 parts (1p1n2u2w) 3129 | -7/Zion | Build established: Mutant 3158 | -7/Zion | Found Prototype Energy Gun 3360 | -7/Zion | Entered Proximity Caves 3651 | -6/Proximity Caves | Attracted the attention of an 0b10 outpost 3655 | -6/Proximity Caves | Core integrity fell below 20% 3779 | -6/Proximity Caves | Destroyed by G-67 Veteran with Plasma Rifle Last Messages --------------- 03650_ L-41 Fighter springs to life. 03650_ S-27 Virus springs to life. 03650_ L-41 Fighter springs to life. 03651_ Y-64 Sentinel: "DETECTED UNIDENTIFIED DERELICT." 03651_ Discarded Aluminum Leg. 03652_ Dropped Med. Armor Plating. 03652_ Dropped Hrd. Light Armor Plating. 03655_ Y-64 Sentinel: "REQUESTING BACKUP." 03673_ P5E0B23